[Event "2nd Namma Bengaluru Open-B 2025"]
[Site "Bengaluru"]
[Date "2025.04.11"]
[Round "3.1"]
[White "Amulya Guruprasad"]
[Black "Nayak, Biswajit"]
[Result "0-1"]
[Annotator "NA"]
[ECO "B81"]
[WhiteElo "1733"]
[BlackElo "1979"]
[PlyCount "98"]
[EventDate "2025.04.10"]
[EventType "swiss"]
[EventCountry "IND"]
[SourceTitle "playchess.com"]
[Source "ChessBase"]
[SourceQuality "1"]
[TimeControl "3600+30"]

1. e4 {[%emt 0:00:01]} c5 {[%emt 0:08:09]} 2. Nf3 {[%emt 0:00:11]} d6 {[%emt 0:00:19]} 3. d4 {[%emt 0:00:06]} cxd4 {[%emt 0:00:06]} 4. Nxd4 {[%emt 0:00:04]} Nf6 {[%emt 0:00:07]} 5. Nc3 {[%emt 0:00:03]} e6 {[%emt 0:02:22]} 6. g4 {[%emt 0:07:27]} h6 {[%emt 0:00:51]} 7. h4 {[%emt 0:03:54]} Nc6 {[%emt 0:00:42]} 8. Be2 {[%emt 0:05:40]} a6 {[%emt 0:00:36]} 9. Be3 {[%emt 0:06:10]} Be7 {[%emt 0:03:36]} 10. Rg1 {[%emt 0:01:26]} d5 {[%emt 0:01:45]} 11. g5 {[%emt 0:04:19]} hxg5 {[%emt 0:00:47]} 12. hxg5 {[%emt 0:01:11]} Nxe4 {[%emt 0:01:07]} 13. Nxe4 {[%emt 0:03:17]} dxe4 {[%emt 0:00:09]} 14. Nxc6 {[%emt 0:00:05]} Qxd1+ {[%emt 0:02:10]} 15. Rxd1 {[%emt 0:00:47]} bxc6 {[%emt 0:00:07]} 16. Rg4 {[%emt 0:05:40]} Rb8 {[%emt 0:03:48]} 17. Bc1 {[%emt 0:10:23]} Rh1+ {[%emt 0:20:53]} 18. Bf1 {[%emt 0:01:33]} e3 {[%emt 0:00:34]} 19. fxe3 {[%emt 0:02:01]} e5 {[%emt 0:00:49]} 20. Re4 {[%emt 0:06:45]} f6 {[%emt 0:08:42]} 21. gxf6 {[%emt 0:00:38]} Bxf6 {[%emt 0:02:06]} 22. Kf2 {[%emt 0:03:55]} Be6 {[%emt 0:04:40]} 23. Ra4 {[%emt 0:02:14]} Kf7 {[%emt 0:02:05]} 24. Be2 {[%emt 0:03:57]} Rh2+ {[%emt 0:01:24]} 25. Ke1 {[%emt 0:00:29]} Rbh8 {[%emt 0:01:22]} 26. Rd3 {[%emt 0:00:36]} Rg2 {[%emt 0:00:29]} 27. Bf1 {[%emt 0:00:34]} Rh1 {[%emt 0:00:49]} 28. Rd2 {[%emt 0:00:32]} Rgg1 {[%emt 0:00:16]} 29. Rf2 {[%emt 0:00:06]} Bh3 {[%emt 0:00:11]} 30. Rxa6 {[%emt 0:00:17]} Bxf1 {[%emt 0:00:13]} 31. Ra7+ {[%emt 0:00:12]} Ke6 {[%emt 0:00:18]} 32. Kd2 {[%emt 0:00:11]} Bh3 {[%emt 0:00:27]} 33. Kc3 {[%emt 0:00:36]} Rxc1 {[%emt 0:00:16]} 34. a4 {[%emt 0:00:02]} e4+ {[%emt 0:01:13]} 35. Kb3 {[%emt 0:00:01]} Rhe1 {[%emt 0:00:08]} 36. a5 {[%emt 0:00:38]} Rxe3+ {[%emt 0:00:10]} 37. Ka2 {[%emt 0:01:52]} Bf1 {[%emt 0:01:08]} 38. c3 {[%emt 0:00:23]} Bc4+ {[%emt 0:00:39]} 39. b3 {[%emt 0:00:56]} Re2+ {[%emt 0:00:19]} 40. Rxe2 {[%emt 0:00:05]} Bxe2 {[%emt 0:00:03]} 41. b4 {[%emt 0:01:06]} Bc4+ {[%emt 0:00:16]} 42. Kb2 {[%emt 0:00:16]} Rxc3 {[%emt 0:00:13]} 43. a6 {[%emt 0:00:38]} Rb3+ {[%emt 0:00:45]} 44. Kc1 {[%emt 0:00:37]} e3 {[%emt 0:00:38]} 45. Rc7 {[%emt 0:01:06]} Bd3 {[%emt 0:01:31]} 46. Rxc6+ {[%emt 0:01:08]} Kd7 {[%emt 0:00:01]} 47. Rc2 {[%emt 0:00:47]} Bxc2 {[%emt 0:00:27]} 48. Kxc2 {[%emt 0:01:04]} Ra3 {[%emt 0:00:01]} 49. b5 {[%emt 0:00:02]} e2 {[%emt 0:00:26]} 0-1

[Event "2nd Namma Bengaluru Open-B 2025"]
[Site "Bengaluru"]
[Date "2025.04.11"]
[Round "3.3"]
[White "Anurag, Jaiswal"]
[Black "Abhay Chetty"]
[Result "1-0"]
[Annotator "NA COMBH"]
[ECO "E52"]
[WhiteElo "1923"]
[BlackElo "1730"]
[PlyCount "111"]
[EventDate "2025.04.10"]
[EventType "swiss"]
[EventCountry "IND"]
[SourceTitle "playchess.com"]
[Source "ChessBase"]
[SourceQuality "1"]
[TimeControl "3600+30"]

1. d4 {[%emt 0:00:04]} Nf6 {[%emt 0:00:06]} 2. Nf3 {[%emt 0:00:21]} d5 {[%emt 0:00:18]} 3. c4 {[%emt 0:00:30]} e6 {[%emt 0:00:17]} 4. Nc3 {[%emt 0:00:12]} Bb4 {[%emt 0:00:19]} 5. e3 {[%emt 0:00:20]} O-O {[%emt 0:00:59]} 6. Bd3 {[%emt 0:00:17]} b6 {[%emt 0:02:03]} 7. cxd5 {[%emt 0:00:13]} exd5 {[%emt 0:00:40]} 8. O-O {[%emt 0:01:54]} Ba6 {[%emt 0:02:59]} 9. Bxa6 {[%emt 0:01:54]} Nxa6 {[%emt 0:00:23]} 10. Qa4 {[%emt 0:00:03]} Qc8 {[%emt 0:03:23]} 11. Bd2 {[%emt 0:01:31]} Bxc3 {[%emt 0:05:34]} 12. Bxc3 {[%emt 0:00:20]} Qb7 {[%emt 0:03:19]} 13. Rfc1 {[%emt 0:00:37]} Ne4 {[%emt 0:02:28]} 14. Be1 {[%emt 0:01:15]} c5 {[%emt 0:03:02]} 15. dxc5 {[%emt 0:00:20]} bxc5 {[%emt 0:00:26]} 16. b3 {[%emt 0:01:33]} Rac8 {[%emt 0:06:18]} 17. Nd2 {[%emt 0:01:57]} Nxd2 {[%emt 0:09:24]} 18. Bxd2 {[%emt 0:00:01]} Rfe8 {[%emt 0:01:31]} 19. Qg4 {[%emt 0:00:48]} Re6 {[%emt 0:01:18]} 20. Bc3 {[%emt 0:00:39]} Rg6 {[%emt 0:01:44]} 21. Qf3 {[%emt 0:00:02]} h5 {[%emt 0:04:46]} 22. Rd1 {[%emt 0:00:27]} Rd8 {[%emt 0:01:25]} 23. h3 {[%emt 0:00:28]} h4 {[%emt 0:07:06]} 24. Rd2 {[%emt 0:00:27]} Nc7 {[%emt 0:01:44]} 25. Ba5 {[%emt 0:01:33]} Rdd6 {[%emt 0:03:24]} 26. Bxc7 {[%emt 0:00:10]} Qxc7 {[%emt 0:00:02]} 27. Rxd5 {[%emt 0:01:27]} Rdf6 {[%emt 0:02:01]} 28. Rf5 {[%emt 0:01:14]} Rxf5 {[%emt 0:02:02]} 29. Qxf5 {[%emt 0:00:02]} Qc6 {[%emt 0:00:09]} 30. e4 {[%emt 0:00:25]} Re6 {[%emt 0:01:32]} 31. Qd5 {[%emt 0:05:32]} Qxd5 {[%emt 0:00:34]} 32. exd5 {[%emt 0:00:02]} Rd6 {[%emt 0:00:01]} 33. Rd1 {[%emt 0:00:57]} Kf8 {[%emt 0:00:13]} 34. Kf1 {[%emt 0:00:48]} Ke7 {[%emt 0:00:11]} 35. Ke2 {[%emt 0:00:32]} Kf6 {[%emt 0:00:05]} 36. f4 {[%emt 0:00:24]} Kf5 {[%emt 0:00:22]} 37. Kf3 {[%emt 0:00:02]} f6 {[%emt 0:00:11]} 38. Rd2 {[%emt 0:00:25]} a5 {[%emt 0:00:28]} 39. Rd1 {[%emt 0:00:22]} a4 {[%emt 0:01:28]} 40. bxa4 {[%emt 0:00:16]} c4 {[%emt 0:00:06]} 41. Ke3 {[%emt 0:00:12]} c3 {[%emt 0:00:13]} 42. Kd4 {[%emt 0:00:34]} Kxf4 {[%emt 0:01:09]} 43. Kxc3 {[%emt 0:00:30]} Kg3 {[%emt 0:00:05]} 44. Rd2 {[%emt 0:00:11]} g5 {[%emt 0:00:44]} 45. Kc4 {[%emt 0:00:04]} f5 {[%emt 0:00:29]} 46. Kc5 {[%emt 0:00:35]} Rd8 {[%emt 0:00:05]} 47. d6 {[%emt 0:00:14]} g4 {[%emt 0:00:21]} 48. hxg4 {[%emt 0:00:10]} fxg4 {[%emt 0:00:02]} 49. Kc6 {[%emt 0:00:12]} h3 {[%emt 0:00:10]} 50. gxh3 {[%emt 0:00:08]} gxh3 {[%emt 0:00:08]} 51. d7 {[%emt 0:00:10]} h2 {[%emt 0:00:26]} 52. Rxh2 {[%emt 0:00:09]} Kxh2 {[%emt 0:00:03]} 53. Kc7 {[%emt 0:00:07]} Ra8 {[%emt 0:00:22]} 54. d8=Q {[%emt 0:00:12]} Rxa4 {[%emt 0:00:18]} 55. Qd6+ {[%emt 0:00:29]} Kg1 {[%emt 0:00:16]} 56. Qd1+ {[%emt 0:00:12]} 1-0

[Event "2nd Namma Bengaluru Open-B 2025"]
[Site "Bengaluru"]
[Date "2025.04.11"]
[Round "3.4"]
[White "Akilan M S"]
[Black "Afreed T Khan"]
[Result "1-0"]
[Annotator "NA"]
[ECO "E62"]
[WhiteElo "1733"]
[BlackElo "1921"]
[PlyCount "152"]
[EventDate "2025.04.10"]
[EventType "swiss"]
[EventCountry "IND"]
[SourceTitle "playchess.com"]
[Source "ChessBase"]
[SourceQuality "1"]
[TimeControl "3600+30"]

1. Nf3 {[%emt 0:00:04]} Nf6 {[%emt 0:08:10]} 2. g3 {[%emt 0:00:08]} g6 {[%emt 0:00:04]} 3. Bg2 {[%emt 0:00:03]} Bg7 {[%emt 0:00:06]} 4. O-O {[%emt 0:00:06]} O-O {[%emt 0:00:05]} 5. c4 {[%emt 0:00:11]} d6 {[%emt 0:00:08]} 6. d4 {[%emt 0:00:06]} c6 {[%emt 0:00:05]} 7. Nc3 {[%emt 0:00:04]} Bf5 {[%emt 0:00:06]} 8. Re1 {[%emt 0:00:54]} Ne4 {[%emt 0:00:43]} 9. Nb1 {[%emt 0:03:16]} d5 {[%emt 0:12:56]} 10. Qb3 {[%emt 0:04:09]} Qb6 {[%emt 0:07:53]} 11. cxd5 {[%emt 0:06:18]} Qxb3 {[%emt 0:01:55]} 12. axb3 {[%emt 0:00:02]} cxd5 {[%emt 0:00:10]} 13. Nc3 {[%emt 0:01:50]} Nxc3 {[%emt 0:03:48]} 14. bxc3 {[%emt 0:00:02]} Be4 {[%emt 0:03:29]} 15. Bf4 {[%emt 0:07:23]} Nc6 {[%emt 0:00:51]} 16. Nd2 {[%emt 0:05:57]} Bxg2 {[%emt 0:02:06]} 17. Kxg2 {[%emt 0:00:38]} Rfc8 {[%emt 0:00:19]} 18. e4 {[%emt 0:00:28]} e5 {[%emt 0:06:12]} 19. dxe5 {[%emt 0:02:23]} Nxe5 {[%emt 0:00:08]} 20. Bxe5 {[%emt 0:06:38]} Bxe5 {[%emt 0:00:39]} 21. exd5 {[%emt 0:00:07]} Bxc3 {[%emt 0:00:07]} 22. Rad1 {[%emt 0:00:09]} Kf8 {[%emt 0:10:43]} 23. Re3 {[%emt 0:00:26]} Bb4 {[%emt 0:01:58]} 24. Nc4 {[%emt 0:01:48]} Rd8 {[%emt 0:00:08]} 25. Red3 {[%emt 0:01:33]} Bd6 {[%emt 0:06:40]} 26. Nxd6 {[%emt 0:01:44]} Rxd6 {[%emt 0:00:02]} 27. Rc3 {[%emt 0:00:07]} Rad8 {[%emt 0:00:55]} 28. Rc7 {[%emt 0:00:41]} R8d7 {[%emt 0:00:14]} 29. Rxd7 {[%emt 0:00:09]} Rxd7 {[%emt 0:00:02]} 30. Kf3 {[%emt 0:00:20]} Ke7 {[%emt 0:00:19]} 31. Ke4 {[%emt 0:00:10]} Kd6 {[%emt 0:00:02]} 32. Rd2 {[%emt 0:02:57]} Re7+ {[%emt 0:01:45]} 33. Kd4 {[%emt 0:00:15]} Re1 {[%emt 0:00:10]} 34. b4 {[%emt 0:01:45]} Rc1 {[%emt 0:01:21]} 35. Ra2 {[%emt 0:00:49]} a6 {[%emt 0:00:38]} 36. Ra5 {[%emt 0:02:28]} Rc2 {[%emt 0:01:48]} 37. Ke3 {[%emt 0:00:03]} Rc4 {[%emt 0:00:25]} 38. Ra4 {[%emt 0:01:29]} Kxd5 {[%emt 0:00:32]} 39. h4 {[%emt 0:00:26]} Rc3+ {[%emt 0:00:33]} 40. Kf4 {[%emt 0:00:20]} h5 {[%emt 0:00:33]} 41. Ra5+ {[%emt 0:00:52]} Kd6 {[%emt 0:00:20]} 42. Ra4 {[%emt 0:00:46]} f6 {[%emt 0:00:52]} 43. f3 {[%emt 0:00:21]} Kc6 {[%emt 0:01:13]} 44. g4 {[%emt 0:00:09]} Rc4+ {[%emt 0:00:14]} 45. Kg3 {[%emt 0:00:06]} Kb5 {[%emt 0:00:57]} 46. gxh5 {[%emt 0:00:24]} gxh5 {[%emt 0:00:19]} 47. Ra5+ {[%emt 0:00:04]} Kxb4 {[%emt 0:00:03]} 48. Rxh5 {[%emt 0:00:05]} a5 {[%emt 0:00:49]} 49. Rh7 {[%emt 0:01:05]} b5 {[%emt 0:00:16]} 50. h5 {[%emt 0:00:03]} a4 {[%emt 0:00:52]} 51. h6 {[%emt 0:00:04]} a3 {[%emt 0:00:18]} 52. Ra7 {[%emt 0:00:03]} Kb3 {[%emt 0:00:37]} 53. h7 {[%emt 0:00:04]} Rc8 {[%emt 0:00:05]} 54. Kf4 {[%emt 0:00:15]} a2 {[%emt 0:00:41]} 55. Kf5 {[%emt 0:00:03]} Kb2 {[%emt 0:00:17]} 56. Kxf6 {[%emt 0:00:11]} a1=Q {[%emt 0:01:49]} 57. Rxa1 {[%emt 0:00:04]} Kxa1 {[%emt 0:00:00]} 58. Kg7 {[%emt 0:00:03]} b4 {[%emt 0:00:00]} 59. h8=Q {[%emt 0:00:10]} Rxh8 {[%emt 0:00:00]} 60. Kxh8 {[%emt 0:00:06]} b3 {[%emt 0:00:00]} 61. f4 {[%emt 0:00:05]} b2 {[%emt 0:00:00]} 62. f5 {[%emt 0:00:03]} b1=Q {[%emt 0:00:00]} 63. f6 {[%emt 0:00:06]} Qh1+ {[%emt 0:00:00]} 64. Kg7 {[%emt 0:00:06]} Qg2+ {[%emt 0:00:00]} 65. Kh7 {[%emt 0:00:05]} Qh3+ {[%emt 0:00:02]} 66. Kg7 {[%emt 0:00:04]} Qg4+ {[%emt 0:00:05]} 67. Kh7 {[%emt 0:00:07]} Qh5+ {[%emt 0:00:06]} 68. Kg7 {[%emt 0:00:04]} Qg5+ {[%emt 0:00:07]} 69. Kf7 {[%emt 0:00:04]} Kb2 {[%emt 0:00:08]} 70. Ke6 {[%emt 0:00:06]} Qg6 {[%emt 0:00:08]} 71. Ke7 {[%emt 0:00:02]} Qe4+ {[%emt 0:00:06]} 72. Kd7 {[%emt 0:00:19]} Qf5+ {[%emt 0:00:08]} 73. Ke7 {[%emt 0:00:03]} Qe5+ {[%emt 0:00:07]} 74. Kf7 {[%emt 0:00:08]} Kc3 {[%emt 0:00:07]} 75. Kg6 {[%emt 0:00:02]} Kd4 {[%emt 0:00:30]} 76. f7 {[%emt 0:00:04]} Qh8 {[%emt 0:00:05]} 1-0

[Event "2nd Namma Bengaluru Open-B 2025"]
[Site "Bengaluru"]
[Date "2025.04.11"]
[Round "3.5"]
[White "Saranya Devi Narahari"]
[Black "Mayank Santosh Hedau"]
[Result "1/2-1/2"]
[Annotator "NA"]
[ECO "C11"]
[WhiteElo "1888"]
[BlackElo "1730"]
[PlyCount "206"]
[EventDate "2025.04.10"]
[EventType "swiss"]
[EventCountry "IND"]
[SourceTitle "playchess.com"]
[Source "ChessBase"]
[SourceQuality "1"]
[TimeControl "3600+30"]

1. e4 {[%emt 0:05:16]} e6 {[%emt 0:00:15]} 2. d4 {[%emt 0:00:08]} d5 {[%emt 0:00:06]} 3. Nc3 {[%emt 0:00:12]} Nf6 {[%emt 0:00:07]} 4. e5 {[%emt 0:00:08]} Nfd7 {[%emt 1:02:02]} 5. f4 {[%emt 0:00:05]} c5 {[%emt 0:00:00]} 6. Nf3 {[%emt 0:00:06]} Nc6 {[%emt 0:00:00]} 7. Be3 {[%emt 0:00:58]} a6 {[%emt 0:00:00]} 8. Be2 {[%emt 0:01:31]} b5 {[%emt 0:00:00]} 9. Qd2 {[%emt 0:00:16]} c4 {[%emt 0:00:00]} 10. Nd1 {[%emt 0:00:26]} Be7 {[%emt 0:00:00]} 11. O-O {[%emt 0:00:17]} Qb6 {[%emt 0:00:00]} 12. h3 {[%emt 0:03:59]} f6 {[%emt 0:00:00]} 13. Bf2 {[%emt 0:03:19]} O-O {[%emt 0:00:00]} 14. Ne3 {[%emt 0:02:36]} fxe5 {[%emt 0:00:00]} 15. fxe5 {[%emt 0:03:36]} Rxf3 {[%emt 0:00:00]} 16. Bxf3 {[%emt 0:00:42]} Qxd4 {[%emt 0:00:00]} 17. Qxd4 {[%emt 0:11:26]} Nxd4 {[%emt 0:00:00]} 18. Bd1 {[%emt 0:01:41]} Nc6 {[%emt 0:00:00]} 19. a4 {[%emt 0:05:11]} b4 {[%emt 0:00:00]} 20. b3 {[%emt 0:06:21]} cxb3 {[%emt 0:00:00]} 21. cxb3 {[%emt 0:00:02]} Ndxe5 {[%emt 0:00:00]} 22. Rc1 {[%emt 0:00:57]} Bd7 {[%emt 0:00:00]} 23. Bc2 {[%emt 0:03:32]} Bf6 {[%emt 0:00:00]} 24. Rcd1 {[%emt 0:04:33]} Rc8 {[%emt 0:00:00]} 25. Rfe1 {[%emt 0:00:52]} Be8 {[%emt 0:00:00]} 26. Nf1 {[%emt 0:03:09]} Bg6 {[%emt 0:00:00]} 27. Bxg6 {[%emt 0:00:40]} hxg6 {[%emt 0:00:00]} 28. Bg3 {[%emt 0:00:53]} Kf7 {[%emt 0:00:00]} 29. Ne3 {[%emt 0:03:51]} Nd7 {[%emt 0:00:00]} 30. Nc4 {[%emt 0:05:37]} dxc4 {[%emt 0:00:00]} 31. Rxd7+ {[%emt 0:00:05]} Ke8 {[%emt 0:00:00]} 32. Rb7 {[%emt 0:03:22]} cxb3 {[%emt 0:00:00]} 33. Rxe6+ {[%emt 0:00:32]} Kf8 {[%emt 0:00:00]} 34. Bd6+ {[%emt 0:00:37]} Kg8 {[%emt 0:00:00]} 35. Bxb4 {[%emt 0:00:27]} b2 {[%emt 0:00:00]} 36. Ba3 {[%emt 0:00:33]} Rc7 {[%emt 0:01:27]} 37. Bxb2 {[%emt 0:00:30]} Rxb7 {[%emt 0:00:34]} 38. Bxf6 {[%emt 0:00:02]} Nb4 {[%emt 0:00:48]} 39. Bc3 {[%emt 0:00:55]} a5 {[%emt 0:00:56]} 40. Rxg6 {[%emt 0:00:24]} Kh7 {[%emt 0:00:17]} 41. Rg5 {[%emt 0:00:14]} Ra7 {[%emt 0:00:17]} 42. Rb5 {[%emt 0:00:21]} Nc6 {[%emt 0:00:27]} 43. Kh2 {[%emt 0:00:46]} Kg8 {[%emt 0:01:08]} 44. Rb6 {[%emt 0:00:26]} Ne7 {[%emt 0:00:23]} 45. Rb8+ {[%emt 0:00:25]} Kf7 {[%emt 0:00:20]} 46. Bd4 {[%emt 0:00:18]} Rd7 {[%emt 0:00:41]} 47. Bc3 {[%emt 0:00:49]} Ra7 {[%emt 0:00:24]} 48. Rb5 {[%emt 0:00:13]} Nc6 {[%emt 0:00:19]} 49. Rb6 {[%emt 0:00:53]} Ne7 {[%emt 0:00:47]} 50. Be1 {[%emt 0:00:26]} Ke8 {[%emt 0:01:02]} 51. Bf2 {[%emt 0:00:27]} Ra8 {[%emt 0:01:33]} 52. Rb7 {[%emt 0:00:02]} g6 {[%emt 0:00:56]} 53. Be1 {[%emt 0:00:59]} Ra6 {[%emt 0:00:45]} 54. Bd2 {[%emt 0:00:38]} Nc6 {[%emt 0:00:50]} 55. g4 {[%emt 0:00:28]} Nd8 {[%emt 0:01:18]} 56. Rc7 {[%emt 0:00:45]} Ne6 {[%emt 0:00:36]} 57. Rb7 {[%emt 0:00:08]} Nc5 {[%emt 0:01:46]} 58. Rb5 {[%emt 0:00:29]} Nxa4 {[%emt 0:00:14]} 59. Bxa5 {[%emt 0:00:06]} Nb2 {[%emt 0:00:18]} 60. Bc3 {[%emt 0:01:14]} Nc4 {[%emt 0:01:07]} 61. Rc5 {[%emt 0:00:17]} Nd6 {[%emt 0:00:47]} 62. Re5+ {[%emt 0:00:32]} Kf7 {[%emt 0:00:27]} 63. Bb4 {[%emt 0:00:05]} Rb6 {[%emt 0:01:04]} 64. Bc5 {[%emt 0:01:10]} Rc6 {[%emt 0:00:08]} 65. Kg2 {[%emt 0:00:26]} Kf6 {[%emt 0:00:46]} 66. Rd5 {[%emt 0:00:24]} Nc4 {[%emt 0:01:13]} 67. Bd4+ {[%emt 0:00:18]} Ke6 {[%emt 0:00:12]} 68. Rd8 {[%emt 0:00:29]} Nd6 {[%emt 0:01:23]} 69. Rg8 {[%emt 0:00:24]} Kd5 {[%emt 0:00:06]} 70. Bf2 {[%emt 0:00:58]} Ne4 {[%emt 0:00:53]} 71. Be3 {[%emt 0:00:08]} Nc3 {[%emt 0:02:13]} 72. Kf3 {[%emt 0:00:48]} Ne4 {[%emt 0:01:32]} 73. Rd8+ {[%emt 0:00:11]} Rd6 {[%emt 0:00:05]} 74. Rxd6+ {[%emt 0:00:33]} Nxd6 {[%emt 0:00:01]} 75. Kf4 {[%emt 0:00:34]} Ke6 {[%emt 0:00:01]} 76. Kg5 {[%emt 0:00:12]} Kf7 {[%emt 0:00:01]} 77. Bd4 {[%emt 0:00:35]} Ne4+ {[%emt 0:00:32]} 78. Kh6 {[%emt 0:00:07]} Ng3 {[%emt 0:00:27]} 79. Kh7 {[%emt 0:00:25]} Ne2 {[%emt 0:00:38]} 80. Be3 {[%emt 0:00:55]} Nc3 {[%emt 0:00:23]} 81. h4 {[%emt 0:00:17]} Nd5 {[%emt 0:00:05]} 82. Bg5 {[%emt 0:00:03]} Nc7 {[%emt 0:00:21]} 83. Bf4 {[%emt 0:00:21]} Ne6 {[%emt 0:00:06]} 84. Be5 {[%emt 0:00:16]} Nf8+ {[%emt 0:02:17]} 85. Kh6 {[%emt 0:00:23]} Ne6 {[%emt 0:00:14]} 86. g5 {[%emt 0:00:23]} Nf8 {[%emt 0:00:14]} 87. Bd6 {[%emt 0:00:13]} Ne6 {[%emt 0:00:22]} 88. Kh7 {[%emt 0:00:05]} Ng7 {[%emt 0:00:21]} 89. Bg3 {[%emt 0:00:14]} Ne6 {[%emt 0:00:17]} 90. Bd6 {[%emt 0:02:25]} Ng7 {[%emt 0:03:05]} 91. Bb4 {[%emt 0:00:43]} Ne6 {[%emt 0:01:32]} 92. Bc3 {[%emt 0:00:04]} Nf8+ {[%emt 0:01:16]} 93. Kh6 {[%emt 0:00:07]} Ne6 {[%emt 0:00:06]} 94. Bf6 {[%emt 0:00:08]} Nf4 {[%emt 0:00:13]} 95. Kh7 {[%emt 0:00:10]} Ne6 {[%emt 0:00:12]} 96. Be5 {[%emt 0:02:00]} Nf8+ {[%emt 0:00:21]} 97. Kh8 {[%emt 0:00:01]} Ne6 {[%emt 0:00:17]} 98. Bc3 {[%emt 0:00:29]} Nf8 {[%emt 0:00:35]} 99. Bg7 {[%emt 0:00:30]} Ne6 {[%emt 0:00:10]} 100. Bh6 {[%emt 0:00:16]} Nf4 {[%emt 0:00:17]} 101. Kh7 {[%emt 0:00:34]} Ne6 {[%emt 0:00:01]} 102. h5 {[%emt 0:01:30]} Nxg5+ {[%emt 0:00:02]} 103. Bxg5 {[%emt 0:00:10]} gxh5 {[%emt 0:00:01]} 1/2-1/2

[Event "2nd Namma Bengaluru Open-B 2025"]
[Site "Bengaluru"]
[Date "2025.04.11"]
[Round "3.6"]
[White "Aryan Behera"]
[Black "Kabnurakar Rushikesh"]
[Result "1-0"]
[Annotator "NA RC"]
[ECO "B36"]
[WhiteElo "1732"]
[BlackElo "1884"]
[PlyCount "55"]
[EventDate "2025.04.10"]
[EventType "swiss"]
[EventCountry "IND"]
[SourceTitle "playchess.com"]
[Source "ChessBase"]
[SourceQuality "1"]
[TimeControl "3600+30"]

1. e4 {[%emt 0:00:02]} c5 {[%emt 0:00:49]} 2. Nf3 {[%emt 0:00:03]} g6 {[%emt 0:00:23]} 3. d4 {[%emt 0:00:06]} cxd4 {[%emt 0:00:06]} 4. Nxd4 {[%emt 0:00:05]} Nc6 {[%emt 0:00:21]} 5. c4 {[%emt 0:00:07]} Nf6 {[%emt 0:00:07]} 6. Nc3 {[%emt 0:00:04]} Nxd4 {[%emt 0:00:55]} 7. Qxd4 {[%emt 0:00:06]} d6 {[%emt 0:00:14]} 8. Bg5 {[%emt 0:02:40]} Bg7 {[%emt 0:00:37]} 9. Be2 {[%emt 0:02:44]} O-O {[%emt 0:00:19]} 10. Qd2 {[%emt 0:00:18]} Be6 {[%emt 0:01:15]} 11. O-O {[%emt 0:02:53]} Rc8 {[%emt 0:05:21]} 12. b3 {[%emt 0:01:10]} a6 {[%emt 0:00:43]} 13. Rac1 {[%emt 0:00:29]} Bd7 {[%emt 0:03:44]} 14. Bf3 {[%emt 0:06:04]} b5 {[%emt 0:02:25]} 15. e5 {[%emt 0:05:25]} dxe5 {[%emt 0:00:39]} 16. Bxf6 {[%emt 0:00:04]} exf6 {[%emt 0:02:58]} 17. Bb7 {[%emt 0:00:04]} b4 {[%emt 0:04:29]} 18. Bxc8 {[%emt 0:03:16]} Bxc8 {[%emt 0:01:47]} 19. Qxd8 {[%emt 0:00:51]} Rxd8 {[%emt 0:00:03]} 20. Nd5 {[%emt 0:00:10]} a5 {[%emt 0:01:07]} 21. Rfd1 {[%emt 0:01:24]} Kf8 {[%emt 0:05:03]} 22. c5 {[%emt 0:03:42]} f5 {[%emt 0:06:12]} 23. c6 {[%emt 0:01:32]} e4 {[%emt 0:02:11]} 24. c7 {[%emt 0:00:39]} Re8 {[%emt 0:01:11]} 25. Nb6 {[%emt 0:00:06]} Bf6 {[%emt 0:02:34]} 26. Rd8 {[%emt 0:01:17]} Be6 {[%emt 0:01:23]} 27. Rxe8+ {[%emt 0:00:08]} Kxe8 {[%emt 0:00:15]} 28. c8=Q+ {[%emt 0:39:01]} 1-0

[Event "2nd Namma Bengaluru Open-B 2025"]
[Site "Bengaluru"]
[Date "2025.04.11"]
[Round "3.7"]
[White "Nihaan Pohane"]
[Black "Ayya Ayush Umesh"]
[Result "1/2-1/2"]
[Annotator "NA"]
[ECO "D02"]
[WhiteElo "1882"]
[BlackElo "1728"]
[PlyCount "107"]
[EventDate "2025.04.10"]
[EventType "swiss"]
[EventCountry "IND"]
[SourceTitle "playchess.com"]
[Source "ChessBase"]
[SourceQuality "1"]
[TimeControl "3600+30"]

1. d4 {[%emt 0:00:03]} Nf6 {[%emt 0:00:05]} 2. Bf4 {[%emt 0:00:06]} e6 {[%emt 0:00:07]} 3. e3 {[%emt 0:00:09]} d5 {[%emt 0:00:06]} 4. Nf3 {[%emt 0:00:06]} c5 {[%emt 0:00:11]} 5. c3 {[%emt 0:00:05]} Nc6 {[%emt 0:00:05]} 6. Nbd2 {[%emt 0:00:07]} cxd4 {[%emt 0:00:05]} 7. exd4 {[%emt 0:00:08]} Nh5 {[%emt 0:00:14]} 8. Be3 {[%emt 0:01:55]} Bd6 {[%emt 0:00:11]} 9. Ne5 {[%emt 0:00:18]} g6 {[%emt 0:00:43]} 10. Bb5 {[%emt 0:08:06]} Bd7 {[%emt 0:11:13]} 11. Nxd7 {[%emt 0:06:41]} Qxd7 {[%emt 0:00:16]} 12. g3 {[%emt 0:08:55]} O-O {[%emt 0:02:10]} 13. O-O {[%emt 0:09:36]} Ng7 {[%emt 0:05:44]} 14. f4 {[%emt 0:04:47]} Qc7 {[%emt 0:09:39]} 15. Bd3 {[%emt 0:04:25]} a6 {[%emt 0:08:21]} 16. a4 {[%emt 0:02:49]} Kh8 {[%emt 0:06:37]} 17. Nf3 {[%emt 0:04:23]} f6 {[%emt 0:04:16]} 18. Nh4 {[%emt 0:04:30]} Nf5 {[%emt 0:01:30]} 19. Bxf5 {[%emt 0:01:45]} gxf5 {[%emt 0:00:10]} 20. Kh1 {[%emt 0:00:34]} Qf7 {[%emt 0:01:37]} 21. Qf3 {[%emt 0:01:32]} Na5 {[%emt 0:01:05]} 22. Rae1 {[%emt 0:02:41]} Rae8 {[%emt 0:00:41]} 23. Re2 {[%emt 0:00:14]} Rg8 {[%emt 0:00:54]} 24. Rfe1 {[%emt 0:00:53]} Nc4 {[%emt 0:16:30]} 25. Bc1 {[%emt 0:03:22]} Bb8 {[%emt 0:00:00]} 26. h3 {[%emt 0:02:11]} Nd6 {[%emt 0:00:00]} 27. g4 {[%emt 0:00:25]} fxg4 {[%emt 0:00:00]} 28. hxg4 {[%emt 0:00:08]} Ne4 {[%emt 0:00:00]} 29. Rh2 {[%emt 0:02:25]} Rg7 {[%emt 0:00:00]} 30. Rg1 {[%emt 0:00:24]} Reg8 {[%emt 0:00:00]} 31. Rh3 {[%emt 0:01:07]} Rxg4 {[%emt 0:00:00]} 32. Rxg4 {[%emt 0:00:51]} Rxg4 {[%emt 0:00:00]} 33. f5 {[%emt 0:00:43]} Rg3 {[%emt 0:00:00]} 34. Rxg3 {[%emt 0:00:31]} Nxg3+ {[%emt 0:00:00]} 35. Kg2 {[%emt 0:00:23]} Nxf5 {[%emt 0:02:18]} 36. Nxf5 {[%emt 0:00:03]} exf5 {[%emt 0:00:05]} 37. Bf4 {[%emt 0:00:49]} Bxf4 {[%emt 0:00:12]} 38. Qxf4 {[%emt 0:00:01]} Kg7 {[%emt 0:00:23]} 39. Kf2 {[%emt 0:00:16]} Qd7 {[%emt 0:00:56]} 40. Qg3+ {[%emt 0:00:39]} Kf8 {[%emt 0:01:05]} 41. Qh4 {[%emt 0:01:09]} Qe7 {[%emt 0:01:24]} 42. Qf4 {[%emt 0:01:15]} Qf7 {[%emt 0:01:46]} 43. Qxf5 {[%emt 0:00:24]} h5 {[%emt 0:00:06]} 44. Kg3 {[%emt 0:00:51]} Kg7 {[%emt 0:00:58]} 45. Kh4 {[%emt 0:00:13]} Kh6 {[%emt 0:00:36]} 46. Qf4+ {[%emt 0:01:34]} Kg7 {[%emt 0:00:18]} 47. Qf5 {[%emt 0:00:21]} Kh6 {[%emt 0:00:09]} 48. Qf4+ {[%emt 0:00:43]} Kg7 {[%emt 0:00:09]} 49. Qf3 {[%emt 0:00:59]} Kh6 {[%emt 0:01:01]} 50. Qe3+ {[%emt 0:00:28]} Kg7 {[%emt 0:00:21]} 51. Qf3 {[%emt 0:00:18]} Kh6 {[%emt 0:00:22]} 52. Qe3+ {[%emt 0:00:40]} Kg7 {[%emt 0:00:17]} 53. Qe2 {[%emt 0:01:06]} Kh6 {[%emt 0:00:56]} 54. Qe3+ {[%emt 0:00:19]} 1/2-1/2